[Event "South Island Championships 2023"]
[Site "Oamaru, New Zealand"]
[Date "2023.09.30"]
[Round "8.6"]
[White "Ha, Timothy Huy Minh"]
[Black "Wang, Justin Zhide"]
[Result "1-0"]
[TimeControl "90 + 30"]
[WhiteFideId "12417246"]
[BlackFideId "4312830"]
[WhiteElo "1843"]
[BlackElo "1849"]

1. Nf3 {[%clk 01:30:57]} {[%emt 00:00:03]} Nf6 {[%clk 01:30:58]} {[%emt
00:00:04]} 2. c4 {[%clk 01:31:20]} {[%emt 00:00:06]} e6 {[%clk 01:31:25]}
{[%emt 00:00:03]} 3. g3 {[%clk 01:31:46]} {[%emt 00:00:03]} b6 {[%clk
01:31:53]} {[%emt 00:00:03]} 4. Bg2 {[%clk 01:32:11]} {[%emt 00:00:05]} Bb7
{[%clk 01:32:20]} {[%emt 00:00:03]} 5. O-O {[%clk 01:32:36]} {[%emt 00:00:05]}
Be7 {[%clk 01:32:19]} {[%emt 00:00:32]} 6. Nc3 {[%clk 01:32:18]} {[%emt
00:00:46]} O-O {[%clk 01:32:44]} {[%emt 00:00:06]} 7. d4 {[%clk 01:32:34]}
{[%emt 00:00:14]} d6 {[%clk 01:32:53]} {[%emt 00:00:22]} 8. Qc2 {[%clk
01:32:20]} {[%emt 00:00:42]} c5 {[%clk 01:29:37]} {[%emt 00:03:48]} 9. e4
{[%clk 01:30:43]} {[%emt 00:02:07]} cxd4 {[%clk 01:27:50]} {[%emt 00:02:18]} 10.
Nxd4 {[%clk 01:31:07]} {[%emt 00:00:05]} Nbd7 {[%clk 01:27:11]} {[%emt
00:01:09]} 11. b3 {[%clk 01:31:20]} {[%emt 00:00:17]} Rc8 {[%clk 01:24:35]}
{[%emt 00:03:06]} 12. Qe2 {[%clk 01:31:25]} {[%emt 00:00:22]} a6 {[%clk
01:20:02]} {[%emt 00:05:05]} 13. Bb2 {[%clk 01:31:50]} {[%emt 00:00:06]} Qc7
{[%clk 01:10:08]} {[%emt 00:10:25]} 14. Rac1 {[%clk 01:28:15]} {[%emt
00:04:02]} Nb8 {[%clk 01:09:25]} {[%emt 00:01:16]} 15. Bh3 {[%clk 01:26:59]}
{[%emt 00:01:44]} Qd7 {[%clk 00:58:17]} {[%emt 00:11:39]} 16. Rcd1 {[%clk
01:26:52]} {[%emt 00:00:37]} Nc6 {[%clk 00:54:02]} {[%emt 00:04:46]} 17. Nf3
{[%clk 01:25:04]} {[%emt 00:02:17]} Qc7 {[%clk 00:52:59]} {[%emt 00:01:33]} 18.
Rfe1 {[%clk 01:23:37]} {[%emt 00:01:57]} Rcd8 {[%clk 00:52:04]} {[%emt
00:01:25]} 19. Nd5 {[%clk 01:21:51]} {[%emt 00:02:16]} exd5 {[%clk 00:47:34]}
{[%emt 00:05:00]} 20. exd5 {[%clk 01:22:13]} {[%emt 00:00:08]} Ne5 {[%clk
00:47:57]} {[%emt 00:00:07]} 21. Nxe5 {[%clk 01:22:27]} {[%emt 00:00:16]} dxe5
{[%clk 00:47:22]} {[%emt 00:01:05]} 22. Bxe5 {[%clk 01:22:51]} {[%emt
00:00:05]} Bd6 {[%clk 00:47:27]} {[%emt 00:00:26]} 23. Bxf6 {[%clk 01:23:15]}
{[%emt 00:00:06]} gxf6 {[%clk 00:47:52]} {[%emt 00:00:05]} 24. Qh5 {[%clk
01:23:15]} {[%emt 00:00:30]} f5 {[%clk 00:42:01]} {[%emt 00:06:21]} 25. Qg5+
{[%clk 01:23:33]} {[%emt 00:00:12]} Kh8 {[%clk 00:42:19]} {[%emt 00:00:13]} 26.
Qf6+ {[%clk 01:23:54]} {[%emt 00:00:08]} Kg8 {[%clk 00:42:40]} {[%emt
00:00:09]} 27. Bxf5 {[%clk 01:24:07]} {[%emt 00:00:16]} Rfe8 {[%clk 00:39:54]}
{[%emt 00:03:17]} 28. Qg5+ {[%clk 01:23:53]} {[%emt 00:00:43]} Kh8 {[%clk
00:40:12]} {[%emt 00:00:12]} 29. Qh6 {[%clk 01:23:14]} {[%emt 00:01:09]} f6
{[%clk 00:40:20]} {[%emt 00:00:22]} 30. Qxf6+ {[%clk 01:23:36]} {[%emt
00:00:09]} Qg7 {[%clk 00:37:04]} {[%emt 00:03:46]} 31. Rxe8+ {[%clk 01:23:59]}
{[%emt 00:00:06]} Rxe8 {[%clk 00:37:31]} {[%emt 00:00:05]} 32. Qxd6 {[%clk
01:24:22]} {[%emt 00:00:07]} Rf8 {[%clk 00:37:04]} {[%emt 00:00:56]} 33. Bh3
{[%clk 01:20:21]} {[%emt 00:04:31]} h5 {[%clk 00:30:05]} {[%emt 00:07:29]} 34.
Re1 {[%clk 01:20:04]} {[%emt 00:00:46]} h4 {[%clk 00:26:38]} {[%emt 00:03:57]}
35. Qe5 {[%clk 01:20:24]} {[%emt 00:00:10]} hxg3 {[%clk 00:26:59]} {[%emt
00:00:10]} 36. Qxg7+ {[%clk 01:20:45]} {[%emt 00:00:09]} Kxg7 {[%clk 00:27:20]}
{[%emt 00:00:09]} 37. Re7+ {[%clk 01:20:53]} {[%emt 00:00:21]} Rf7 {[%clk
00:27:47]} {[%emt 00:00:04]} 38. Rxf7+ {[%clk 01:21:10]} {[%emt 00:00:13]} Kxf7
{[%clk 00:28:16]} {[%emt 00:00:02]} 39. Be6+ {[%clk 01:21:30]} {[%emt
00:00:09]} Kf6 {[%clk 00:28:37]} {[%emt 00:00:09]} 40. hxg3 {[%clk 01:21:52]}
{[%emt 00:00:08]} Ke5 {[%clk 00:28:56]} {[%emt 00:00:12]} 41. f3 {[%clk
01:22:10]} {[%emt 00:00:11]} Kd6 {[%clk 00:28:55]} {[%emt 00:00:31]} 42. f4
{[%clk 01:22:28]} {[%emt 00:00:12]} b5 {[%clk 00:29:16]} {[%emt 00:00:09]} 43.
g4 {[%clk 01:22:45]} {[%emt 00:00:13]} bxc4 {[%clk 00:28:57]} {[%emt 00:00:49]}
44. bxc4 {[%clk 01:23:10]} {[%emt 00:00:05]} a5 {[%clk 00:29:26]} 45. g5 {[%clk
01:23:31]} {[%emt 00:00:09]} a4 {[%clk 00:29:41]} {[%emt 00:00:15]} 46. g6
{[%clk 01:23:32]} {[%emt 00:00:28]} a3 {[%clk 00:30:07]} {[%emt 00:00:05]} 47.
g7 {[%clk 01:23:58]} {[%emt 00:00:04]} Bc6 {[%clk 00:29:39]} {[%emt 00:00:58]}
48. dxc6 {[%clk 01:24:18]} {[%emt 00:00:10]} Kc5 {[%clk 00:29:54]} {[%emt
00:00:16]} 49. g8=Q {[%clk 01:24:19]} {[%emt 00:00:25]} Kd4 {[%clk 00:29:46]}
{[%emt 00:00:41]} 50. Qg7+ {[%clk 01:24:41]} {[%emt 00:00:08]} Kc5 {[%clk
00:30:10]} {[%emt 00:00:06]} 51. Qe5+ {[%clk 01:24:52]} {[%emt 00:00:19]} Kb4
{[%clk 00:30:12]} {[%emt 00:00:27]} 52. c7 {[%clk 01:24:59]} {[%emt 00:00:23]}
Ka4 {[%clk 00:30:25]} {[%emt 00:00:17]} 53. Qb5# {[%clk 01:25:19]} {[%emt
00:00:10]} 1-0